fUSD/lending_fUSD_20250812
["ID","MTS","AMOUNT","RATE_DAILY","PERIOD"]
[378779776,1755013389682,-619.16,0.00044657,120]
[378779777,1755013389729,-1023.43,0.00044657,120]
[378779778,1755013389772,-400.0,0.00044657,120]
[378779779,1755013389816,-400.0,0.00044657,120]
[378779780,1755013389861,-410.83,0.00044657,120]
[378779781,1755013389906,-811.14,0.00044657,120]
[378779782,1755013389953,-487.79,0.00044657,120]
[378779783,1755013389999,-560.93,0.00044657,120]
[378779784,1755013390042,-400.0,0.00044657,120]
[378779785,1755013390088,-190.93,0.00044657,120]
[378779786,1755013390132,-371.2,0.00044778,120]
[378779787,1755013390176,-163862.83613286,0.000449,120]
[378779788,1755013390220,-142496.9404098,0.000449,120]
[378779792,1755013394564,648.13341335,0.00037287,120]
[378779793,1755013404917,954.28787465,0.00037287,30]
[378779809,1755013466604,160.70555484,0.00037287,60]
[378779846,1755013503154,184.13605165,0.00037287,120]
[378779903,1755013831956,-1000.0,0.00024888,3]
[378779904,1755013831965,-212.18484978,0.000249,2]
[378779905,1755013831974,-1000.0,0.00024976,3]
[378779906,1755013831984,-1000.0,0.00025173,3]
[378779908,1755013831993,-212.1848496,0.00026124,4]
[378779909,1755013832002,-212.1848496,0.00027348,7]
[378779910,1755013832011,-1000.0,0.00027364,3]
[378779911,1755013832021,-500.0,0.00027364,2]
[378779913,1755013832031,-226.0,0.00027389,2]
[378779914,1755013832040,-300.0,0.00027389,2]
[378779916,1755013832050,-1200.0,0.00027389,2]
[378779917,1755013832059,-1000.0,0.0002739,3]
[378779918,1755013832069,-212.1848496,0.00028572,10]
[378779931,1755013832273,-1200.0,0.00029729,2]
[378779932,1755013832283,-212.1848496,0.00029797,12]
[378779934,1755013832293,-212.1848496,0.00031021,15]
[378779936,1755013832303,-666.0,0.00032019,3]
[378779938,1755013832313,-212.1848496,0.00032245,18]
[378779939,1755013832323,-457.93703655,0.00032285,2]
[378779940,1755013832332,-211.77135896,0.00032285,2]
[378779941,1755013832342,-523.0,0.00032291,2]
[378779942,1755013832352,-156.4,0.00033203,2]
[378779943,1755013832361,-212.1848496,0.00033469,20]
[378779944,1755013832370,-212.1848496,0.00034693,23]
[378779945,1755013832379,-212.1848496,0.00035917,25]
[378779946,1755013832389,-174.91,0.00036097,2]
[378779947,1755013832400,-170.0,0.00036494,7]
[378779948,1755013832410,-1572.06,0.00036654,120]
[378779949,1755013832419,-180.52946452,0.00036654,46]
[378779950,1755013832428,-1102.18,0.00036654,46]
[378779951,1755013832438,-438.34,0.00036668,2]
[378779952,1755013832447,-150.0,0.00036909,2]
[378779953,1755013832456,-200.0,0.00037,120]
[378779954,1755013832466,-201.16,0.00037072,2]
[378779955,1755013832476,-158.29,0.00037073,30]
[378779956,1755013832486,-212.1848496,0.00037141,28]
[378779957,1755013832496,-1009.0,0.000374,7]
[378779958,1755013832506,-174.91,0.0003745,2]
[378779959,1755013832518,-523.0,0.00037833,13]
[378779960,1755013832527,-167.17,0.00037835,2]
[378779961,1755013832539,-250.0,0.00037927,2]
[378779962,1755013832549,-55214.0,0.00038,2]
[378779963,1755013832558,-591.04,0.00038069,60]
[378779964,1755013832568,-1000.0,0.00038166,2]
[378779965,1755013832578,-212.1848496,0.00038366,31]
[378779966,1755013832588,-5512.0,0.000388,3]
[378779967,1755013832598,-201.16,0.00038926,2]
[378779968,1755013832607,-5512.0,0.000395,5]
[378779969,1755013832618,-212.1848496,0.0003959,33]
[378779970,1755013832628,-500.0,0.00039676,2]
[378779971,1755013832638,-500.0,0.00039676,2]
[378779972,1755013832647,-500.0,0.00039676,2]
[378779973,1755013832657,-500.0,0.00039676,2]
[378779974,1755013832666,-380.24490178,0.00039676,2]
[378779975,1755013832676,-591.04,0.00039995,60]
[378779976,1755013832686,-500.0,0.0004,120]
[378779977,1755013832695,-400.0,0.0004003,120]
[378779978,1755013832705,-3550.974,0.00040478,2]
[378779979,1755013832715,-201.16,0.00040779,2]
[378779980,1755013832724,-400.0,0.000408,120]
[378779981,1755013832734,-184.07,0.0004081,120]
[378779982,1755013832743,-212.1848496,0.00040814,36]
[378779983,1755013832753,-400.0,0.0004082,120]
[378779984,1755013832762,-1000.0,0.00040821,120]
[378779985,1755013832773,-151.19,0.00040821,120]
[378779986,1755013832782,-400.0,0.0004083,120]
[378779987,1755013832791,-400.0,0.0004084,120]
[378779988,1755013832801,-400.0,0.0004084,120]
[378779989,1755013832810,-400.0,0.0004085,120]
[378779990,1755013832820,-400.0,0.0004085,120]
[378779991,1755013832829,-400.0,0.0004086,120]
[378779992,1755013832839,-400.0,0.0004086,120]
[378779993,1755013832848,-400.0,0.0004087,120]
[378779994,1755013832858,-400.0,0.0004088,120]
[378779995,1755013832867,-400.0,0.0004088,120]
[378779996,1755013832876,-400.0,0.0004089,120]
[378779997,1755013832886,-400.0,0.000409,120]
[378779998,1755013832896,-400.0,0.000409,120]
[378779999,1755013832906,-400.0,0.0004091,120]
[378780000,1755013832915,-400.0,0.0004091,120]
[378780001,1755013832926,-400.0,0.0004093,120]
[378780002,1755013832943,-400.0,0.0004094,120]
[378780003,1755013832955,-187.19498344,0.00040985,15]
[378780004,1755013832964,-2500.0,0.00040985,2]
[378780005,1755013832974,-163.9198084,0.00040994,15]
[378780006,1755013832983,-572.15383537,0.00040995,15]
[378780007,1755013832996,-1276.8745647,0.00040995,13]
[378780008,1755013833005,-227.13800804,0.00040995,16]
[378780009,1755013833014,-9665.3892,0.00040995,120]
[378780010,1755013833025,-3580.2181,0.00040995,2]
[378780011,1755013833034,-165.47352258,0.00041,120]
[378780012,1755013833044,-500.0,0.00041073,5]
[378780013,1755013833053,-500.0,0.00041073,5]
[378780014,1755013833064,-500.0,0.00041073,5]
[378780015,1755013833074,-500.0,0.00041073,5]
[378780016,1755013833083,-159.03229537,0.00041073,5]
[378780017,1755013833093,-502.41211929,0.00041073,5]
[378780018,1755013833103,-500.0,0.00041073,5]
[378780019,1755013833112,-423.66241236,0.00041073,5]
[378780020,1755013833123,-500.0,0.00041073,5]
[378780021,1755013833132,-502.79524056,0.00041073,5]
[378780022,1755013833142,-500.0,0.00041073,5]
[378780023,1755013833151,-500.0,0.00041073,5]
[378780024,1755013833161,-648.03,0.00041075,2]
[378780025,1755013833170,-442.28534735,0.00041084,31]
[378780026,1755013833180,-155.73303719,0.00041084,31]
[378780027,1755013833190,-157.58146157,0.00041084,31]
[378780028,1755013833199,-124410.24449369,0.00041085,3]
[378780029,1755013833253,-7862.77808231,0.00041085,3]
[378780030,1755013833265,-114083.456002,0.00041085,3]
[378780031,1755013833275,-30565.04536375,0.00041085,3]
[378780032,1755013833286,-69162.73857455,0.00041085,3]
[378780033,1755013833295,-648.03,0.00041085,2]
[378780034,1755013833305,-150.0,0.00041094,2]
[378780035,1755013833314,-1000.0,0.00041094,120]
[378780036,1755013833324,-500.0,0.00041094,120]
[378780037,1755013833334,-400.0,0.00041095,30]
[378780038,1755013833344,-400.0,0.00041095,30]
[378780039,1755013833353,-400.0,0.00041095,30]
[378780040,1755013833362,-400.0,0.00041095,30]
[378780041,1755013833372,-400.0,0.00041095,30]
[378780042,1755013833381,-400.0,0.00041095,30]
[378780043,1755013833390,-400.0,0.00041095,30]
[378780044,1755013833400,-400.0,0.00041095,30]
[378780045,1755013833409,-400.0,0.00041095,30]
[378780046,1755013833418,-466.00001133,0.00041095,30]
[378780047,1755013833427,-400.0,0.00041095,30]
[378780048,1755013833437,-400.0,0.00041095,30]
[378780049,1755013833448,-400.0,0.00041095,30]
[378780050,1755013833458,-400.0,0.00041095,30]
[378780051,1755013833467,-400.0,0.00041095,30]
[378780052,1755013833477,-400.0,0.00041095,30]
[378780053,1755013833486,-400.0,0.00041095,30]
[378780054,1755013833496,-400.0,0.00041095,30]
[378780055,1755013833505,-400.0,0.00041095,30]
[378780056,1755013833515,-400.0,0.00041095,30]
[378780057,1755013833525,-400.0,0.00041095,30]
[378780058,1755013833536,-400.0,0.00041095,30]
[378780059,1755013833547,-400.0,0.00041095,30]
[378780060,1755013833556,-400.0,0.00041095,30]
[378780061,1755013833565,-400.0,0.00041095,30]
[378780062,1755013833575,-400.0,0.00041095,30]
[378780063,1755013833585,-460.57521701,0.00041095,30]
[378780064,1755013833595,-400.0,0.00041095,30]
[378780065,1755013833604,-400.0,0.00041095,30]
[378780066,1755013833616,-409.78277404,0.00041095,30]
[378780067,1755013833629,-400.0,0.00041095,30]
[378780068,1755013833639,-400.0,0.00041095,30]
[378780069,1755013833649,-400.0,0.00041095,30]
[378780070,1755013833658,-400.0,0.00041095,30]
[378780071,1755013833667,-400.0,0.00041095,30]
[378780072,1755013833677,-400.0,0.00041095,30]
[378780073,1755013833686,-400.0,0.00041095,30]
[378780074,1755013833696,-400.0,0.00041095,30]
[378780075,1755013833707,-400.0,0.00041095,30]
[378780076,1755013833717,-400.0,0.00041095,30]
[378780077,1755013833727,-400.0,0.00041095,30]
[378780078,1755013833736,-400.0,0.00041095,30]
[378780079,1755013833745,-400.0,0.00041095,30]
[378780080,1755013833755,-400.0,0.00041095,30]
[378780081,1755013833765,-400.0,0.00041095,30]
[378780082,1755013833776,-400.0,0.00041095,30]
[378780083,1755013833785,-200.0,0.00041095,30]
[378780084,1755013833795,-400.0,0.00041095,30]
[378780085,1755013833804,-400.0,0.00041095,30]
[378780086,1755013833814,-400.0,0.00041095,30]
[378780087,1755013833823,-400.0,0.00041095,30]
[378780088,1755013833834,-400.0,0.00041095,30]
[378780089,1755013833844,-400.0,0.00041095,30]
[378780090,1755013833853,-400.0,0.00041095,30]
[378780091,1755013833863,-495.38869579,0.00041095,30]
[378780092,1755013833872,-400.0,0.00041095,30]
[378780093,1755013833882,-400.0,0.00041095,30]
[378780094,1755013833891,-400.0,0.00041095,30]
[378780095,1755013833901,-400.0,0.00041095,30]
[378780096,1755013833910,-400.0,0.00041095,30]
[378780097,1755013833920,-400.0,0.00041095,30]
[378780098,1755013833929,-400.0,0.00041095,30]
[378780099,1755013833939,-400.0,0.00041095,30]
[378780100,1755013833949,-400.0,0.00041095,30]
[378780101,1755013833958,-400.0,0.00041095,30]
[378780102,1755013833968,-400.0,0.00041095,30]
[378780103,1755013833977,-400.0,0.00041095,30]
[378780104,1755013833987,-400.0,0.00041095,30]
[378780105,1755013833996,-400.0,0.00041095,30]
[378780106,1755013834005,-400.0,0.00041095,30]
[378780107,1755013834014,-400.0,0.00041095,30]
[378780108,1755013834025,-403.93962061,0.00041095,30]
[378780109,1755013834034,-400.0,0.00041095,30]
[378780110,1755013834044,-400.0,0.00041095,30]
[378780111,1755013834054,-400.0,0.00041095,30]
[378780112,1755013834063,-400.0,0.00041095,30]
[378780113,1755013834073,-400.0,0.00041095,30]
[378780114,1755013834082,-400.0,0.00041095,30]
[378780115,1755013834093,-405.29826974,0.00041095,30]
[378780116,1755013834102,-400.0,0.00041095,30]
[378780117,1755013834112,-400.0,0.00041095,30]
[378780118,1755013834121,-400.0,0.00041095,30]
[378780119,1755013834131,-420.95492191,0.00041095,30]
[378780120,1755013834141,-405.71472767,0.00041095,30]
[378780121,1755013834150,-400.0,0.00041095,30]
[378780122,1755013834160,-400.0,0.00041095,30]
[378780123,1755013834170,-400.0,0.00041095,30]
[378780124,1755013834180,-400.0,0.00041095,30]
[378780125,1755013834189,-400.0,0.00041095,30]
[378780126,1755013834199,-400.0,0.00041095,30]
[378780127,1755013834208,-400.0,0.00041095,30]
[378780128,1755013834218,-150.0,0.00041095,30]
[378780129,1755013834228,-400.0,0.00041095,30]
[378780130,1755013834237,-400.0,0.00041095,30]
[378780131,1755013834247,-400.0,0.00041095,30]
[378780132,1755013834257,-402.38218122,0.00041095,30]
[378780133,1755013834266,-400.0,0.00041095,30]
[378780134,1755013834276,-489.4836311,0.00041095,30]
[378780135,1755013834285,-404.10849074,0.00041095,30]
[378780136,1755013834295,-400.0,0.00041095,30]
[378780137,1755013834305,-400.0,0.00041095,30]
[378780138,1755013834314,-400.0,0.00041095,30]
[378780139,1755013834324,-400.0,0.00041095,30]
[378780140,1755013834334,-400.0,0.00041095,30]
[378780141,1755013834343,-400.0,0.00041095,30]
[378780142,1755013834353,-400.0,0.00041095,30]
[378780143,1755013834363,-400.0,0.00041095,30]
[378780144,1755013834373,-400.0,0.00041095,30]
[378780145,1755013834382,-400.0,0.00041095,30]
[378780146,1755013834392,-559.48,0.00041095,30]
[378780147,1755013834401,-400.0,0.00041095,30]
[378780148,1755013834411,-400.0,0.00041095,30]
[378780149,1755013834420,-400.0,0.00041095,30]
[378780150,1755013834429,-400.0,0.00041095,30]
[378780151,1755013834439,-400.0,0.00041095,30]
[378780152,1755013834448,-400.0,0.00041095,30]
[378780153,1755013834458,-400.0,0.00041095,30]
[378780154,1755013834468,-400.0,0.00041095,30]
[378780155,1755013834478,-400.0,0.00041095,30]
[378780156,1755013834487,-400.0,0.00041095,30]
[378780157,1755013834497,-500.0,0.00041095,30]
[378780158,1755013834507,-500.0,0.00041095,30]
[378780159,1755013834516,-500.0,0.00041095,30]
[378780160,1755013834527,-402.2355136,0.00041095,30]
[378780161,1755013834537,-500.0,0.00041095,30]
[378780162,1755013834551,-500.0,0.00041095,30]
[378780163,1755013834561,-400.0,0.00041095,30]
[378780164,1755013834570,-400.0,0.00041095,30]
[378780165,1755013834580,-400.0,0.00041095,30]
[378780166,1755013834590,-474.08,0.00041095,30]
[378780167,1755013834599,-400.0,0.00041095,30]
[378780168,1755013834608,-400.97851921,0.00041095,30]
[378780169,1755013834619,-400.0,0.00041095,30]
[378780170,1755013834628,-400.0,0.00041095,30]
[378780171,1755013834638,-400.0,0.00041095,30]
[378780172,1755013834647,-400.0,0.00041095,30]
[378780173,1755013834657,-404.28624535,0.00041095,30]
[378780174,1755013834666,-400.0,0.00041095,30]
[378780175,1755013834676,-400.0,0.00041095,30]
[378780176,1755013834685,-400.0,0.00041095,30]
[378780177,1755013834694,-400.0,0.00041095,30]
[378780178,1755013834703,-401.05623975,0.00041095,30]
[378780179,1755013834713,-400.0,0.00041095,30]
[378780180,1755013834722,-400.0,0.00041095,30]
[378780181,1755013834732,-400.0,0.00041095,30]
[378780182,1755013834741,-427.63874313,0.00041095,30]
[378780183,1755013834750,-408.63211055,0.00041095,30]
[378780184,1755013834759,-400.0,0.00041095,30]
[378780185,1755013834769,-400.0,0.00041095,30]
[378780186,1755013834779,-400.0,0.00041095,30]
[378780187,1755013834789,-400.0,0.00041095,30]
[378780188,1755013834798,-400.0,0.00041095,30]
[378780189,1755013834808,-405.68196665,0.00041095,30]
[378780190,1755013834818,-400.68578831,0.00041095,30]
[378780191,1755013834828,-400.0,0.00041095,30]
[378780192,1755013834838,-400.0,0.00041095,30]
[378780193,1755013834847,-402.92562966,0.00041095,30]
[378780194,1755013834857,-400.0,0.00041095,30]
[378780195,1755013834867,-400.0,0.00041095,30]
[378780196,1755013834877,-400.0,0.00041095,30]
[378780197,1755013834887,-400.0,0.00041095,30]
[378780198,1755013834896,-400.0,0.00041095,30]
[378780199,1755013834905,-400.0,0.00041095,30]
[378780200,1755013834915,-400.0,0.00041095,30]
[378780201,1755013834926,-400.0,0.00041095,30]
[378780202,1755013834936,-400.0,0.00041095,30]
[378780203,1755013834946,-500.0,0.00041095,2]
[378780204,1755013834960,-400.0,0.00041095,30]
[378780205,1755013834969,-500.0,0.00041095,2]
[378780206,1755013834979,-500.0,0.00041095,2]
[378780207,1755013834988,-400.0,0.00041095,30]
[378780208,1755013834998,-500.0,0.00041095,2]
[378780209,1755013835007,-500.0,0.00041095,2]
[378780210,1755013835016,-400.85643197,0.00041095,30]
[378780211,1755013835028,-380.55018387,0.00041095,30]
[378780212,1755013835038,-400.0,0.00041095,30]
[378780213,1755013835047,-400.0,0.00041095,30]
[378780214,1755013835057,-400.0,0.00041095,30]
[378780215,1755013835066,-400.0,0.00041095,30]
[378780216,1755013835075,-400.0,0.00041095,30]
[378780217,1755013835085,-400.0,0.00041095,30]
[378780218,1755013835095,-400.0,0.00041095,30]
[378780219,1755013835104,-400.0,0.00041095,30]
[378780220,1755013835282,-400.0,0.00041095,30]
[378780221,1755013835293,-400.0,0.00041095,30]
[378780222,1755013835303,-400.0,0.00041095,30]
[378780223,1755013835312,-400.0,0.00041095,30]
[378780224,1755013835322,-407.20658223,0.00041095,30]
[378780225,1755013835331,-400.0,0.00041095,30]
[378780226,1755013835341,-655.15,0.00041095,30]
[378780227,1755013835351,-400.0,0.00041095,30]
[378780228,1755013835360,-400.0,0.00041095,30]
[378780229,1755013835369,-400.0,0.00041095,30]
[378780230,1755013835378,-400.0,0.00041095,30]
[378780231,1755013835388,-400.0,0.00041095,30]
[378780232,1755013835397,-478.96,0.00041095,30]
[378780233,1755013835406,-400.0,0.00041095,30]
[378780234,1755013835415,-400.0,0.00041095,30]
[378780235,1755013835424,-400.0,0.00041095,2]
[378780236,1755013835434,-400.0,0.00041095,30]
[378780237,1755013835443,-400.0,0.00041095,30]
[378780238,1755013835453,-400.0,0.00041095,30]
[378780239,1755013835462,-400.0,0.00041095,30]
[378780240,1755013835471,-400.0,0.00041095,30]
[378780241,1755013835480,-400.0,0.00041095,30]
[378780242,1755013835490,-400.0,0.00041095,30]
[378780243,1755013835499,-400.0,0.00041095,30]
[378780244,1755013835508,-400.0,0.00041095,30]
[378780245,1755013835517,-400.0,0.00041095,30]
[378780246,1755013835529,-400.0,0.00041095,30]
[378780247,1755013835541,-400.0,0.00041095,30]
[378780248,1755013835550,-400.0,0.00041095,30]
[378780249,1755013835560,-400.0,0.00041095,30]
[378780250,1755013835569,-400.0,0.00041095,30]
[378780251,1755013835579,-400.0,0.00041095,30]
[378780252,1755013835588,-400.0,0.00041095,30]
[378780253,1755013835598,-400.0,0.00041095,30]
[378780254,1755013835607,-400.0,0.00041095,30]
[378780255,1755013835618,-430.22,0.00041095,30]
[378780256,1755013835628,-400.0,0.00041095,30]
[378780257,1755013835637,-400.0,0.00041095,30]
[378780258,1755013835647,-400.0,0.00041095,30]
[378780259,1755013835656,-400.0,0.00041095,30]
[378780260,1755013835666,-440.69320727,0.00041095,30]
[378780261,1755013835675,-400.0,0.00041095,30]
[378780262,1755013835685,-402.72614489,0.00041095,7]
[378780263,1755013835694,-441.56,0.00041095,30]
[378780264,1755013835703,-404.67,0.00041095,30]
[378780265,1755013835713,-154.79222759,0.00041095,30]
[378780266,1755013835722,-400.0,0.00041095,30]
[378780267,1755013835732,-400.0,0.00041095,30]
[378780268,1755013835742,-400.0,0.00041095,30]
[378780269,1755013835751,-495.68,0.00041095,30]
[378780270,1755013835760,-400.0,0.00041095,30]
[378780271,1755013835771,-400.0,0.00041095,30]
[378780272,1755013835780,-351.50334779,0.00041095,30]
[378780273,1755013835790,-400.64176171,0.00041095,30]
[378780274,1755013835799,-567.8,0.00041095,30]
[378780275,1755013835808,-400.0,0.00041095,30]
[378780276,1755013835817,-400.0,0.00041095,30]
[378780277,1755013835827,-416.73,0.00041095,30]
[378780278,1755013835837,-400.0,0.00041095,30]
[378780279,1755013835846,-400.0,0.00041095,30]
[378780280,1755013835855,-400.0,0.00041095,30]
[378780281,1755013835864,-404.73515315,0.00041095,30]
[378780282,1755013835874,-400.0,0.00041095,30]
[378780283,1755013835883,-400.0,0.00041095,30]
[378780284,1755013835892,-400.0,0.00041095,30]
[378780285,1755013835901,-400.0,0.00041095,30]
[378780286,1755013835910,-400.0,0.00041095,30]
[378780287,1755013835920,-400.0,0.00041095,30]
[378780288,1755013835929,-400.0,0.00041095,30]
[378780289,1755013835939,-400.0,0.00041095,30]
[378780290,1755013835948,-400.0,0.00041095,30]
[378780291,1755013835958,-400.0,0.00041095,30]
[378780292,1755013835967,-400.0,0.00041095,30]
[378780293,1755013835976,-401.57737999,0.00041095,30]
[378780294,1755013835985,-313.39698388,0.00041095,30]
[378780295,1755013835995,-400.0,0.00041095,30]
[378780296,1755013836004,-400.0,0.00041095,7]
[378780297,1755013836012,-400.0,0.00041095,30]
[378780298,1755013836023,-400.0,0.00041095,30]
[378780299,1755013836033,-400.0,0.00041095,30]
[378780300,1755013836042,-400.0,0.00041095,30]
[378780301,1755013836052,-400.0,0.00041095,30]
[378780302,1755013836061,-400.0,0.00041095,30]
[378780303,1755013836070,-400.0,0.00041095,30]
[378780304,1755013836080,-400.0,0.00041095,30]
[378780305,1755013836089,-400.0,0.00041095,30]
[378780306,1755013836098,-400.0,0.00041095,30]
[378780307,1755013836108,-400.0,0.00041095,30]
[378780308,1755013836118,-400.0,0.00041095,30]
[378780309,1755013836128,-400.0,0.00041095,30]
[378780310,1755013836137,-673.79,0.00041095,30]
[378780311,1755013836147,-400.0,0.00041095,30]
[378780312,1755013836156,-400.0,0.00041095,30]
[378780313,1755013836166,-400.0,0.00041095,30]
[378780314,1755013836176,-549.15857126,0.00041095,30]
[378780315,1755013836185,-400.0,0.00041095,30]
[378780316,1755013836194,-400.0,0.00041095,30]
[378780317,1755013836203,-401.73466503,0.00041095,30]
[378780318,1755013836213,-400.0,0.00041095,30]
[378780319,1755013836223,-400.0,0.00041095,30]
[378780320,1755013836232,-400.0,0.00041095,30]
[378780321,1755013836243,-400.0,0.00041095,30]
[378780322,1755013836252,-400.0,0.00041095,30]
[378780323,1755013836262,-400.0,0.00041095,30]
[378780324,1755013836273,-500.0,0.00041095,30]
[378780325,1755013836284,-400.0,0.00041095,30]
[378780326,1755013836294,-400.0,0.00041095,30]
[378780327,1755013836303,-400.0,0.00041095,30]
[378780328,1755013836313,-400.0,0.00041095,30]
[378780329,1755013836322,-400.0,0.00041095,30]
[378780330,1755013836332,-400.0,0.00041095,30]
[378780331,1755013836341,-400.0,0.00041095,30]
[378780332,1755013836350,-400.0,0.00041095,30]
[378780333,1755013836359,-321.8496135,0.00041095,30]
[378780334,1755013836368,-400.0,0.00041095,30]
[378780335,1755013836377,-400.0,0.00041095,30]
[378780336,1755013836386,-400.0,0.00041095,30]
[378780337,1755013836395,-400.0,0.00041095,30]
[378780338,1755013836405,-400.0,0.00041095,30]
[378780339,1755013836414,-400.0,0.00041095,30]
[378780340,1755013836423,-400.0,0.00041095,30]
[378780341,1755013836433,-400.0,0.00041095,30]
[378780342,1755013836442,-400.0,0.00041095,2]
[378780343,1755013836451,-400.0,0.00041095,30]
[378780344,1755013836461,-635.45,0.00041095,30]
[378780345,1755013836470,-400.0,0.00041095,30]
[378780346,1755013836479,-400.0,0.00041095,30]
[378780347,1755013836488,-400.0,0.00041095,30]
[378780348,1755013836498,-400.0,0.00041095,2]
[378780349,1755013836507,-400.0,0.00041095,30]
[378780350,1755013836516,-400.0,0.00041095,30]
[378780351,1755013836527,-400.0,0.00041095,30]
[378780352,1755013836538,-400.0,0.00041095,30]
[378780353,1755013836552,-400.0,0.00041095,30]
[378780354,1755013836562,-400.0,0.00041095,30]
[378780355,1755013836571,-400.0,0.00041095,30]
[378780356,1755013836582,-400.0,0.00041095,30]
[378780357,1755013836592,-400.0,0.00041095,30]
[378780358,1755013836602,-400.0,0.00041095,30]
[378780359,1755013836612,-400.0,0.00041095,30]
[378780360,1755013836623,-400.0,0.00041095,30]
[378780361,1755013836633,-414.42,0.00041095,30]
[378780362,1755013836642,-400.0,0.00041095,30]
[378780363,1755013836652,-400.0,0.00041095,30]
[378780364,1755013836661,-430.24,0.00041095,30]
[378780365,1755013836670,-400.0,0.00041095,30]
[378780366,1755013836680,-400.0,0.00041095,30]
[378780367,1755013836689,-400.0,0.00041095,30]
[378780368,1755013836699,-400.0,0.00041095,30]
[378780369,1755013836708,-400.0,0.00041095,30]
[378780370,1755013836717,-400.0,0.00041095,30]
[378780371,1755013836727,-400.0,0.00041095,30]
[378780372,1755013836737,-400.0,0.00041095,30]
[378780373,1755013836746,-400.0,0.00041095,30]
[378780374,1755013836755,-400.0,0.00041095,30]
[378780375,1755013836765,-402.89902592,0.00041095,30]
[378780376,1755013836775,-400.0,0.00041095,30]
[378780377,1755013836784,-400.0,0.00041095,30]
[378780378,1755013836794,-400.0,0.00041095,30]
[378780379,1755013836803,-400.0,0.00041095,30]
[378780380,1755013836812,-400.0,0.00041095,30]
[378780381,1755013836822,-400.0,0.00041095,30]
[378780382,1755013836831,-400.0,0.00041095,30]
[378780383,1755013836841,-400.0,0.00041095,30]
[378780384,1755013836850,-400.0,0.00041095,30]
[378780385,1755013836859,-402.7065861,0.00041095,30]
[378780386,1755013836869,-400.0,0.00041095,30]
[378780387,1755013836878,-492.65,0.00041095,30]
[378780388,1755013836888,-402.03956326,0.00041095,30]
[378780389,1755013836899,-400.0,0.00041095,30]
[378780390,1755013836907,-400.0,0.00041095,30]
[378780391,1755013836917,-400.0,0.00041095,30]
[378780392,1755013836926,-400.0,0.00041095,30]
[378780393,1755013836935,-454.89,0.00041095,30]
[378780394,1755013836944,-400.0,0.00041095,30]
[378780395,1755013836954,-403.07220865,0.00041095,30]
[378780396,1755013836964,-400.0,0.00041095,30]
[378780397,1755013836974,-400.0,0.00041095,30]
[378780398,1755013836983,-400.0,0.00041095,30]
[378780399,1755013836993,-402.80308364,0.00041095,30]
[378780400,1755013837002,-400.0,0.00041095,30]
[378780401,1755013837011,-150.0,0.00041095,30]
[378780402,1755013837021,-400.985432,0.00041095,30]
[378780403,1755013837031,-462.67,0.00041095,30]